Department Family,Entity,Date,Expenses Type,Expense Area,Supplier,Transaction Number, Total 
Department of Health,The Christie NHS Foundation Trust,14/03/2019,PET SCANS - Adhoc charges,Christie Medical Physics,ALLIANCE MEDICAL LTD,0000607877,"23,800.00"
Department of Health,The Christie NHS Foundation Trust,21/03/2019,PET Scans- Feb 19,Christie Medical Physics,ALLIANCE MEDICAL LTD,0000609337,"193,475.00"
Department of Health,The Christie NHS Foundation Trust,07/03/2019,Non Medical Equipment,Capital,ANS GROUP,0000606544,"28,625.00"
Department of Health,The Christie NHS Foundation Trust,28/03/2019,Licences,Estates & Facilities,ASCKEY DATA SERVICES LTD,0000610653,"27,810.00"
Department of Health,The Christie NHS Foundation Trust,21/03/2019,Feasibility Study,Capital,ATHERDEN FULLER  LENG,0000608462,"20,985.25"
Department of Health,The Christie NHS Foundation Trust,14/03/2019,Drugs,Drugs,BAXTER HEALTHCARE LTD,0000607997,"452,405.44"
Department of Health,The Christie NHS Foundation Trust,01/03/2019,Drugs,Drugs,BAXTER HEALTHCARE LTD,0000608752,"336,207.60"
Department of Health,The Christie NHS Foundation Trust,21/03/2019,Drugs,Drugs,BAXTER HEALTHCARE LTD,0000609673,"413,847.25"
Department of Health,The Christie NHS Foundation Trust,21/03/2019,Drugs,Drugs,BAXTER HEALTHCARE LTD,0000609675,"-39,264.00"
Department of Health,The Christie NHS Foundation Trust,21/03/2019,Drugs,Drugs,BAXTER HEALTHCARE LTD,0000609733,"-43,470.00"
Department of Health,The Christie NHS Foundation Trust,21/03/2019,Drugs,Drugs,BAXTER HEALTHCARE LTD,0000609735,"523,565.22"
Department of Health,The Christie NHS Foundation Trust,21/03/2019,Drugs,Drugs,BAXTER HEALTHCARE LTD,0000609738,"336,207.60"
Department of Health,The Christie NHS Foundation Trust,21/03/2019,Drugs,Drugs,BAXTER HEALTHCARE LTD,0000609740,"473,333.92"
Department of Health,The Christie NHS Foundation Trust,21/03/2019,Drugs,Drugs,BAXTER HEALTHCARE LTD,0000609742,"573,164.87"
Department of Health,The Christie NHS Foundation Trust,14/03/2019,Drugs,Drugs,BAXTER HEALTHCARE LTD,0000608017,"492,948.32"
Department of Health,The Christie NHS Foundation Trust,28/03/2019,Non Medical Equipment,Digital Sevices,CCS MEDIA LIMITED,0000610871,"44,240.16"
Department of Health,The Christie NHS Foundation Trust,21/03/2019,Non Medical Equipment,Digital Sevices,CCS MEDIA LIMITED,0000610387,"60,595.20"
Department of Health,The Christie NHS Foundation Trust,21/03/2019,Lift Development,Capital,CLASSIC LIFTS LIMITED,0000609670,"70,467.00"
Department of Health,The Christie NHS Foundation Trust,21/03/2019,Lift Development,Capital,CLASSIC LIFTS LIMITED,0000609669,"67,068.00"
Department of Health,The Christie NHS Foundation Trust,14/03/2019,Medical Equipment Maintenance Contract,Clinical Support & Specialist Surgery,CPP FACILITIES LLP,0000607762,"219,233.70"
Department of Health,The Christie NHS Foundation Trust,21/03/2019,Medical Equipment Maintenance Contract,Research & Development,CPP FACILITIES LLP,0000610072,"197,702.40"
Department of Health,The Christie NHS Foundation Trust,21/03/2019,Medical Equipment Maintenance Contract,Research & Development,CPP FACILITIES LLP,0000610070,"180,000.00"
Department of Health,The Christie NHS Foundation Trust,21/03/2019,Medical Equipment Maintenance Contract,Research & Development,CPP FACILITIES LLP,0000610298,"174,632.40"
Department of Health,The Christie NHS Foundation Trust,14/03/2019,Medical Equipment Maintenance Contract,Clinical Support & Specialist Surgery,CPP FACILITIES LLP,0000607763,"-174,671.29"
Department of Health,The Christie NHS Foundation Trust,07/03/2019,Medical Equipment Maintenance Contract,Clinical Support & Specialist Surgery,CPP FACILITIES LLP,0000608660,"179,562.08"
Department of Health,The Christie NHS Foundation Trust,14/03/2019,Energy Contract Feb 19,Network Services,EDF ENERGY,0000609101,"41,020.65"
Department of Health,The Christie NHS Foundation Trust,14/03/2019,Energy Contract Feb 19,Network Services,EDF ENERGY,0000609103,"33,983.12"
Department of Health,The Christie NHS Foundation Trust,28/03/2019,Software Development,Capital,EGRESS GROUP LTD,0000609244,"54,500.00"
Department of Health,The Christie NHS Foundation Trust,07/03/2019,Childcare Voucer- Feb 19,Human Resources,FIDELITI LIMITED,0000608495,"29,504.21"
Department of Health,The Christie NHS Foundation Trust,14/03/2019,New Development design work,Capital,IDEAS BY  MUSIC  LTD,0000607731,"22,180.00"
Department of Health,The Christie NHS Foundation Trust,21/03/2019,Medical Equipment,Christie Medical Physics,IMAGING EQUIPMENT LTD,0000608465,"31,722.00"
Department of Health,The Christie NHS Foundation Trust,14/03/2019,Medical Equipment,Christie Medical Physics,IMAGING EQUIPMENT LTD,0000608277,"61,980.00"
Department of Health,The Christie NHS Foundation Trust,28/03/2019,Paterson Development,Capital,INTERSERVE CONSTRUCTION LTD,0000610533,"1,076,869.27"
Department of Health,The Christie NHS Foundation Trust,28/03/2019,Paterson Development,Capital,INTERSERVE CONSTRUCTION LTD,0000610620,"232,075.82"
Department of Health,The Christie NHS Foundation Trust,07/03/2019,Clinical System,Capital,INTOUCH WITH HEALTH LIMITED,0000607115,"25,407.36"
Department of Health,The Christie NHS Foundation Trust,21/03/2019,Clinical System,Capital,INTOUCH WITH HEALTH LIMITED,0000610026,"36,766.80"
Department of Health,The Christie NHS Foundation Trust,21/03/2019,Clinical System,Capital,INTOUCH WITH HEALTH LIMITED,0000608492,"27,159.00"
Department of Health,The Christie NHS Foundation Trust,21/03/2019,Clinical System,Capital,INTOUCH WITH HEALTH LIMITED,0000608493,"27,682.31"
Department of Health,The Christie NHS Foundation Trust,28/03/2019,Service Contract,Clinical Support & Specialist Surgery,INTUITIVE SURGICAL LTD,0000610483,"49,410.00"
Department of Health,The Christie NHS Foundation Trust,28/03/2019,Drugs,Drugs,LLOYDSPHARMACY CLINICAL HOMECARE,0000611062,"38,045.04"
Department of Health,The Christie NHS Foundation Trust,21/03/2019,Paterson Development,Capital,MACE LTD,0000608603,"49,980.00"
Department of Health,The Christie NHS Foundation Trust,21/03/2019,PET Scans Feb 19,Christie Medical Physics,MANCHESTER UNIVERSITY NHS FT,0000609990,"108,006.00"
Department of Health,The Christie NHS Foundation Trust,21/03/2019,Critical Care Feb 19,Clinical Support & Specialist Surgery,MANCHESTER UNIVERSITY NHS FT,0000608584,"29,638.00"
Department of Health,The Christie NHS Foundation Trust,07/03/2019,Anaesthetics Feb  19,Clinical Support & Specialist Surgery,MANCHESTER UNIVERSITY NHS FT,0000608582,"27,148.17"
Department of Health,The Christie NHS Foundation Trust,14/03/2019,Drugs,Drugs,MID CHESHIRE HOSPITALS NHS FT,0000602089,"120,269.14"
Department of Health,The Christie NHS Foundation Trust,15/03/2019,Blood Products,Network Services,NHS BLOOD AND TRANSPLANT,0000610621,"182,293.80"
Department of Health,The Christie NHS Foundation Trust,21/03/2019,Stock for all Wards & Departments,All Wards and Departments,NHS SUPPLY CHAIN,0000608931,"31,513.85"
Department of Health,The Christie NHS Foundation Trust,28/03/2019,Stock for all Wards & Departments,All Wards and Departments,NHS SUPPLY CHAIN,0000610410,"26,751.00"
Department of Health,The Christie NHS Foundation Trust,28/03/2019,Stock for all Wards & Departments,All Wards and Departments,NHS SUPPLY CHAIN,0000610283,"57,351.05"
Department of Health,The Christie NHS Foundation Trust,21/03/2019,Stock for all Wards & Departments,All Wards and Departments,NHS SUPPLY CHAIN,0000609098,"22,795.00"
Department of Health,The Christie NHS Foundation Trust,21/03/2019,Stock for all Wards & Departments,All Wards and Departments,NHS SUPPLY CHAIN,0000609761,"41,636.10"
Department of Health,The Christie NHS Foundation Trust,28/03/2019,Stock for all Wards & Departments,All Wards and Departments,NHS SUPPLY CHAIN,0000610898,"41,551.70"
Department of Health,The Christie NHS Foundation Trust,28/03/2019,Stock for all Wards & Departments,All Wards and Departments,NHS SUPPLY CHAIN,0000610953,"48,575.80"
Department of Health,The Christie NHS Foundation Trust,21/03/2019,Stock for all Wards & Departments,All Wards and Departments,NHS SUPPLY CHAIN,0000608505,"41,388.18"
Department of Health,The Christie NHS Foundation Trust,14/03/2019,Stock for all Wards & Departments,All Wards and Departments,NHS SUPPLY CHAIN,0000607994,"41,005.70"
Department of Health,The Christie NHS Foundation Trust,07/03/2019,Stock for all Wards & Departments,All Wards and Departments,NHS SUPPLY CHAIN,0000607383,"43,503.72"
Department of Health,The Christie NHS Foundation Trust,21/03/2019,Energy Recharges QTR 2,Manchester Cancer,SALFORD ROYAL HOSP NHS FT,0000610113,"25,968.98"
Department of Health,The Christie NHS Foundation Trust,21/03/2019,Medical Equipment Maintenance,Capital,SIEMENS HEALTHCARE LIMITED,0000608671,"49,484.00"
Department of Health,The Christie NHS Foundation Trust,21/03/2019,Software Licences,FInance & Business Development,SOFTCAT PLC,0000610301,"70,357.88"
Department of Health,The Christie NHS Foundation Trust,21/03/2019,Quality Control 18-19,Network Services,STOCKPORT NHS FOUNDATION TRUST,0000609925,"45,149.29"
Department of Health,The Christie NHS Foundation Trust,21/03/2019,Medway System Support- Feb 19,Finance & Business Development,SYSTEM C HEALTHCARE,0000609574,"24,485.11"
Department of Health,The Christie NHS Foundation Trust,07/03/2019,Medway System Support- Jan 19,Finance & Business Development,SYSTEM C HEALTHCARE,0000606973,"24,485.11"
Department of Health,The Christie NHS Foundation Trust,21/03/2019,Medical Equipment and maintenance,Capital,TERUMO BCT EUROPE NV,0000609885,"69,572.48"
Department of Health,The Christie NHS Foundation Trust,14/03/2019,Patient Testing service,Network Services,THE ANTHONY NOLAN BONE MARROW,0000605734,"31,445.65"
Department of Health,The Christie NHS Foundation Trust,14/03/2019,Patient Testing service,Network Services,THE ANTHONY NOLAN BONE MARROW,0000606946,"36,990.18"
Department of Health,The Christie NHS Foundation Trust,28/03/2019,Drugs,Drugs,THE CHRISTIE CLINIC (HCA),0000609796,"34,986.00"
Department of Health,The Christie NHS Foundation Trust,07/03/2019,Patient Testing Service ,Clinical Support & Specialist Surgery,THE CHRISTIE PATHOLOGY PARTNERSHIP LLP,0000608659,"377,837.20"
Department of Health,The Christie NHS Foundation Trust,14/03/2019,Patient Testing Service ,Clinical Support & Specialist Surgery,THE CHRISTIE PATHOLOGY PARTNERSHIP LLP,0000607761,"461,314.80"
Department of Health,The Christie NHS Foundation Trust,14/03/2019,Patient Testing Service ,Clinical Support & Specialist Surgery,THE CHRISTIE PATHOLOGY PARTNERSHIP LLP,0000607764,"-367,545.91"
Department of Health,The Christie NHS Foundation Trust,21/03/2019,Procurement Project,FInance & Business Development,THE HCI GROUP LTD,0000608504,"28,125.00"
Department of Health,The Christie NHS Foundation Trust,21/03/2019,Research Project,Research & Development,UNIVERSITY OF MANCHESTER,0000610003,"5,449,168.80"
Department of Health,The Christie NHS Foundation Trust,28/03/2019,Proton Beam Development (PBT),Capital,VARIAN MEDICAL SYSTEMS UK LTD,0000611034,"-58,141.85"
Department of Health,The Christie NHS Foundation Trust,28/03/2019,Proton Beam Development (PBT),Capital,VARIAN MEDICAL SYSTEMS UK LTD,0000611033,"-151,102.27"
Department of Health,The Christie NHS Foundation Trust,28/03/2019,Proton Beam Development (PBT),Capital,VARIAN MEDICAL SYSTEMS UK LTD,0000610275,"58,141.85"
Department of Health,The Christie NHS Foundation Trust,28/03/2019,Proton Beam Development (PBT),Capital,VARIAN MEDICAL SYSTEMS UK LTD,0000610498,"42,500.00"
Department of Health,The Christie NHS Foundation Trust,28/03/2019,Proton Beam Development (PBT),Capital,VARIAN MEDICAL SYSTEMS UK LTD,0000610280,"151,102.27"
Department of Health,The Christie NHS Foundation Trust,21/03/2019,Christie @ Wigan Feb-19,Network Services,WRIGHTINGTON WIGAN AND LEIGH NHS FT,0000608525,"264,086.00"
Department of Health,The Christie NHS Foundation Trust,21/03/2019,Christie @ Wigan Apr-Jan 19,Network Services,WRIGHTINGTON WIGAN AND LEIGH NHS FT,0000608524,"326,384.00"
